[Event "Early-Titled-Tuesday-Blitz-October-24-2023"]
[Site "Chess.com"]
[Date "2023.10.24"]
[Round "4"]
[White "I_am_Javi"]
[Black "GroovyKettle"]
[Result "0-1"]
[WhiteElo "2795"]
[BlackElo "2977"]
[TimeControl "180+1"]
[EndTime "8:38:02 PDT"]
[Termination "GroovyKettle won on time"]

1. e4 {[%clk 0:03:00.9]} 1... c6 {[%clk 0:02:58.6]} 2. d4 {[%clk 0:03:00.7]}
2... d5 {[%clk 0:02:57.8]} 3. e5 {[%clk 0:03:01.4]} 3... Bf5 {[%clk 0:02:57.5]}
4. c3 {[%clk 0:03:01.5]} 4... e6 {[%clk 0:02:57.2]} 5. Bd3 {[%clk 0:03:01.9]}
5... Ne7 {[%clk 0:02:53.5]} 6. Ne2 {[%clk 0:03:01.9]} 6... Nd7 {[%clk
0:02:52.3]} 7. O-O {[%clk 0:03:01.8]} 7... Bxd3 {[%clk 0:02:47.9]} 8. Qxd3
{[%clk 0:03:02.7]} 8... Nf5 {[%clk 0:02:47.8]} 9. Nd2 {[%clk 0:02:58.3]} 9...
Be7 {[%clk 0:02:46]} 10. g4 {[%clk 0:02:56]} 10... Nh4 {[%clk 0:02:45.4]} 11.
Ng3 {[%clk 0:02:56.3]} 11... f6 {[%clk 0:02:25.1]} 12. f4 {[%clk 0:02:52.6]}
12... O-O {[%clk 0:02:22.8]} 13. Nf3 {[%clk 0:02:17]} 13... fxe5 {[%clk
0:02:17.5]} 14. Nxe5 {[%clk 0:01:53.5]} 14... Nxe5 {[%clk 0:02:16.3]} 15. dxe5
{[%clk 0:01:53.1]} 15... Qb6+ {[%clk 0:02:04.5]} 16. Kh1 {[%clk 0:01:49.5]}
16... c5 {[%clk 0:01:55.9]} 17. Bd2 {[%clk 0:01:33]} 17... Rad8 {[%clk
0:01:52.4]} 18. Rae1 {[%clk 0:01:01.5]} 18... c4 {[%clk 0:01:34.5]} 19. Qe2
{[%clk 0:01:01]} 19... Qxb2 {[%clk 0:01:24]} 20. Rb1 {[%clk 0:00:57.5]} 20...
Qxa2 {[%clk 0:01:17.4]} 21. Rxb7 {[%clk 0:00:55.4]} 21... Rf7 {[%clk 0:01:15.4]}
22. f5 {[%clk 0:00:52.8]} 22... d4 {[%clk 0:01:10.3]} 23. f6 {[%clk 0:00:33.6]}
23... d3 {[%clk 0:00:50.5]} 24. fxe7 {[%clk 0:00:19.3]} 24... Rxe7 {[%clk
0:00:44.8]} 25. Qe4 {[%clk 0:00:19.2]} 25... Rxb7 {[%clk 0:00:39.2]} 26. Qxb7
{[%clk 0:00:20.1]} 26... Ng6 {[%clk 0:00:39.4]} 27. Bg5 {[%clk 0:00:17.9]} 27...
Rf8 {[%clk 0:00:37.2]} 28. Rxf8+ {[%clk 0:00:18.1]} 28... Nxf8 {[%clk
0:00:36.7]} 29. Qg2 {[%clk 0:00:05.9]} 29... Qa1+ {[%clk 0:00:29.3]} 30. Qf1
{[%clk 0:00:05]} 30... Qxc3 {[%clk 0:00:28.9]} 31. Be7 {[%clk 0:00:05.5]} 31...
Ng6 {[%clk 0:00:28.6]} 32. Bd6 {[%clk 0:00:05.9]} 32... d2 {[%clk 0:00:23.4]}
33. Ne4 {[%clk 0:00:04.1]} 33... Qd4 {[%clk 0:00:18.1]} 34. Nxd2 {[%clk
0:00:04.2]} 34... Qxd2 {[%clk 0:00:16.9]} 35. Qxc4 {[%clk 0:00:04.5]} 35... Nf4
{[%clk 0:00:15.3]} 36. Qc8+ {[%clk 0:00:04]} 36... Kf7 {[%clk 0:00:15.9]} 37.
Qf8+ {[%clk 0:00:03.4]} 37... Kg6 {[%clk 0:00:16.5]} 38. Qe8+ {[%clk 0:00:03.3]}
38... Kg5 {[%clk 0:00:16.1]} 39. Qe7+ {[%clk 0:00:03.9]} 39... Kxg4 {[%clk
0:00:16.2]} 40. Qxg7+ {[%clk 0:00:04.4]} 40... Kf5 {[%clk 0:00:16.3]} 41. Qxh7+
{[%clk 0:00:04.2]} 41... Kg4 {[%clk 0:00:16.9]} 42. Qg7+ {[%clk 0:00:04.1]}
42... Kf3 {[%clk 0:00:17.6]} 43. Qg3+ {[%clk 0:00:04.3]} 43... Ke4 {[%clk
0:00:18.3]} 44. h4 {[%clk 0:00:04.5]} 44... a5 {[%clk 0:00:15]} 45. h5 {[%clk
0:00:03.7]} 45... Qd1+ {[%clk 0:00:15.5]} 46. Kh2 {[%clk 0:00:03.2]} 46... Qxh5+
{[%clk 0:00:16.4]} 0-1

[Event "Early-Titled-Tuesday-Blitz-October-24-2023"]
[Site "Chess.com"]
[Date "2023.10.24"]
[Round "4"]
[White "Wizard_97"]
[Black "Elsa167"]
[Result "0-1"]
[WhiteElo "2615"]
[BlackElo "2866"]
[TimeControl "180+1"]
[EndTime "8:38:03 PDT"]
[Termination "Elsa167 won by checkmate"]

1. e4 {[%clk 0:03:00.9]} 1... e6 {[%clk 0:02:53.8]} 2. d4 {[%clk 0:03:01.3]}
2... d5 {[%clk 0:02:53.9]} 3. Nd2 {[%clk 0:03:02]} 3... c5 {[%clk 0:02:53.8]} 4.
exd5 {[%clk 0:03:02.1]} 4... Qxd5 {[%clk 0:02:54.7]} 5. dxc5 {[%clk 0:03:03]}
5... Nf6 {[%clk 0:02:54.4]} 6. Ngf3 {[%clk 0:03:03.4]} 6... Qxc5 {[%clk
0:02:55]} 7. Bd3 {[%clk 0:03:03.1]} 7... Nbd7 {[%clk 0:02:54.7]} 8. O-O {[%clk
0:03:03.3]} 8... Qc7 {[%clk 0:02:55.3]} 9. Qe2 {[%clk 0:03:03.8]} 9... b6 {[%clk
0:02:55.2]} 10. Ne4 {[%clk 0:03:04.4]} 10... Be7 {[%clk 0:02:53.4]} 11. Bg5
{[%clk 0:03:04.7]} 11... Bb7 {[%clk 0:02:53.3]} 12. Rad1 {[%clk 0:03:03.6]}
12... O-O {[%clk 0:02:51]} 13. Nxf6+ {[%clk 0:02:59.4]} 13... Bxf6 {[%clk
0:02:42.3]} 14. Bxh7+ {[%clk 0:02:26.3]} 14... Kxh7 {[%clk 0:02:41]} 15. Qd3+
{[%clk 0:02:26.6]} 15... Kg8 {[%clk 0:02:41.7]} 16. Qxd7 {[%clk 0:02:27.2]}
16... Qxd7 {[%clk 0:02:13.7]} 17. Rxd7 {[%clk 0:02:28.1]} 17... Bxf3 {[%clk
0:02:12.6]} 18. Bxf6 {[%clk 0:02:27.7]} 18... Be2 {[%clk 0:01:27.5]} 19. Bc3
{[%clk 0:01:51.3]} 19... Bxf1 {[%clk 0:01:17]} 20. Kxf1 {[%clk 0:01:52.2]} 20...
Rfd8 {[%clk 0:01:16.7]} 21. Rc7 {[%clk 0:01:51]} 21... a5 {[%clk 0:01:13.5]} 22.
a3 {[%clk 0:01:44.2]} 22... Rd6 {[%clk 0:01:04.4]} 23. Ke2 {[%clk 0:01:40.7]}
23... f6 {[%clk 0:01:04.3]} 24. h4 {[%clk 0:01:39.2]} 24... Rad8 {[%clk
0:01:00.2]} 25. Rb7 {[%clk 0:01:38.7]} 25... e5 {[%clk 0:00:58.4]} 26. g3 {[%clk
0:01:32]} 26... R8d7 {[%clk 0:00:57.5]} 27. Rb8+ {[%clk 0:01:32.3]} 27... Kf7
{[%clk 0:00:58.1]} 28. h5 {[%clk 0:01:31.4]} 28... Ke6 {[%clk 0:00:56.6]} 29.
Rh8 {[%clk 0:01:28.8]} 29... Rb7 {[%clk 0:00:50.1]} 30. Rh7 {[%clk 0:01:26.3]}
30... Rd8 {[%clk 0:00:43.1]} 31. h6 {[%clk 0:01:14.7]} 31... Rf7 {[%clk
0:00:43.2]} 32. g4 {[%clk 0:01:09.9]} 32... g5 {[%clk 0:00:32.2]} 33. Rxf7
{[%clk 0:01:08.8]} 33... Kxf7 {[%clk 0:00:33.1]} 34. Ke3 {[%clk 0:01:08.9]}
34... Rh8 {[%clk 0:00:31.8]} 35. Ke4 {[%clk 0:01:08.1]} 35... Ke6 {[%clk
0:00:32.2]} 36. Kd3 {[%clk 0:01:06.9]} 36... Rxh6 {[%clk 0:00:27.1]} 37. Kc4
{[%clk 0:01:06.5]} 37... Rh4 {[%clk 0:00:21]} 38. Kb5 {[%clk 0:01:06.7]} 38...
Rxg4 {[%clk 0:00:21.6]} 39. Kxb6 {[%clk 0:01:07.3]} 39... Rf4 {[%clk 0:00:20.7]}
40. Kxa5 {[%clk 0:01:07.1]} 40... Rxf2 {[%clk 0:00:21.3]} 41. b4 {[%clk
0:01:07]} 41... Rxc2 {[%clk 0:00:19.1]} 42. Be1 {[%clk 0:01:07.1]} 42... Kd5
{[%clk 0:00:18.7]} 43. b5 {[%clk 0:01:06.8]} 43... f5 {[%clk 0:00:17.7]} 44. Ka6
{[%clk 0:01:03.4]} 44... f4 {[%clk 0:00:17.5]} 45. a4 {[%clk 0:01:03.6]} 45...
f3 {[%clk 0:00:16.9]} 46. b6 {[%clk 0:01:04.2]} 46... Kc6 {[%clk 0:00:15.3]} 47.
Ka7 {[%clk 0:00:44.5]} 47... f2 {[%clk 0:00:12.6]} 48. Bxf2 {[%clk 0:00:44.3]}
48... Rxf2 {[%clk 0:00:13.5]} 49. a5 {[%clk 0:00:44.5]} 49... Rb2 {[%clk
0:00:12.9]} 50. Ka6 {[%clk 0:00:39.1]} 50... e4 {[%clk 0:00:12.6]} 51. b7 {[%clk
0:00:39.7]} 51... e3 {[%clk 0:00:12.4]} 52. Ka7 {[%clk 0:00:38]} 52... Rxb7+
{[%clk 0:00:12.6]} 53. Ka8 {[%clk 0:00:38.2]} 53... Rb5 {[%clk 0:00:11.8]} 54.
a6 {[%clk 0:00:38.7]} 54... Kb6 {[%clk 0:00:11.7]} 55. a7 {[%clk 0:00:39]} 55...
Re5 {[%clk 0:00:11.8]} 56. Kb8 {[%clk 0:00:39]} 56... Re8# {[%clk 0:00:12.7]}
0-1

[Event "Early-Titled-Tuesday-Blitz-October-24-2023"]
[Site "Chess.com"]
[Date "2023.10.24"]
[Round "4"]
[White "sergeikim"]
[Black "giomar27"]
[Result "1-0"]
[WhiteElo "2595"]
[BlackElo "2369"]
[TimeControl "180+1"]
[EndTime "8:38:03 PDT"]
[Termination "sergeikim won by resignation"]

1. d4 {[%clk 0:03:00.9]} 1... Nf6 {[%clk 0:02:59.8]} 2. c4 {[%clk 0:03:00.9]}
2... c5 {[%clk 0:03:00.4]} 3. d5 {[%clk 0:03:00.6]} 3... b5 {[%clk 0:03:01.1]}
4. cxb5 {[%clk 0:03:00.7]} 4... a6 {[%clk 0:03:01.5]} 5. b6 {[%clk 0:03:00.9]}
5... d6 {[%clk 0:03:01.7]} 6. Nc3 {[%clk 0:03:00.7]} 6... Nbd7 {[%clk
0:03:02.3]} 7. e4 {[%clk 0:03:00.7]} 7... Rb8 {[%clk 0:03:02.6]} 8. Be2 {[%clk
0:03:00.7]} 8... g6 {[%clk 0:03:03.1]} 9. Nf3 {[%clk 0:03:00.6]} 9... Bg7 {[%clk
0:03:03.7]} 10. O-O {[%clk 0:03:00.6]} 10... O-O {[%clk 0:03:04.4]} 11. Nd2
{[%clk 0:03:00.4]} 11... Nxb6 {[%clk 0:02:54.2]} 12. a4 {[%clk 0:03:00.1]} 12...
e6 {[%clk 0:02:38.8]} 13. a5 {[%clk 0:02:58]} 13... Na8 {[%clk 0:02:38.2]} 14.
Nc4 {[%clk 0:02:54.5]} 14... exd5 {[%clk 0:02:35.7]} 15. exd5 {[%clk 0:02:54.5]}
15... Bb7 {[%clk 0:02:33.9]} 16. Bf4 {[%clk 0:02:52.5]} 16... Ne8 {[%clk
0:02:30]} 17. Bf3 {[%clk 0:02:50.7]} 17... Nac7 {[%clk 0:02:26.5]} 18. Nb6
{[%clk 0:02:34.9]} 18... f5 {[%clk 0:02:16.2]} 19. Qd2 {[%clk 0:02:32.9]} 19...
Nf6 {[%clk 0:02:04.4]} 20. Bg5 {[%clk 0:02:21]} 20... Nb5 {[%clk 0:01:57]} 21.
Nxb5 {[%clk 0:02:20]} 21... axb5 {[%clk 0:01:57.7]} 22. Rfe1 {[%clk 0:02:20]}
22... Qc7 {[%clk 0:01:51.7]} 23. Bh6 {[%clk 0:02:15.5]} 23... Rbe8 {[%clk
0:01:49.6]} 24. Bxg7 {[%clk 0:02:15.3]} 24... Kxg7 {[%clk 0:01:50.5]} 25. h3
{[%clk 0:01:57.2]} 25... Ne4 {[%clk 0:01:38.4]} 26. Bxe4 {[%clk 0:01:50.1]}
26... fxe4 {[%clk 0:01:38.2]} 27. Qc3+ {[%clk 0:01:40.3]} 27... Re5 {[%clk
0:01:36.5]} 28. Rxe4 {[%clk 0:01:35.4]} 28... b4 {[%clk 0:01:33.1]} 29. Qe3
{[%clk 0:01:35.2]} 29... Rfe8 {[%clk 0:01:28]} 30. Rxe5 {[%clk 0:01:34.2]} 30...
Rxe5 {[%clk 0:01:28.9]} 31. Qd3 {[%clk 0:01:30.6]} 31... c4 {[%clk 0:01:02]} 32.
Qxc4 {[%clk 0:01:21.1]} 32... Qxc4 {[%clk 0:00:57.2]} 33. Nxc4 {[%clk
0:01:21.6]} 33... Rxd5 {[%clk 0:00:58.1]} 34. a6 {[%clk 0:01:20.7]} 34... Bc6
{[%clk 0:00:49.6]} 35. a7 {[%clk 0:01:19.6]} 35... Rd4 {[%clk 0:00:47.9]} 36.
Nb6 {[%clk 0:01:18.6]} 36... Rd2 {[%clk 0:00:48]} 37. a8=Q {[%clk 0:01:13.9]}
37... Bxa8 {[%clk 0:00:48.2]} 38. Rxa8 {[%clk 0:01:14.1]} 38... Rxb2 {[%clk
0:00:48.6]} 39. Rb8 {[%clk 0:01:12.6]} 39... Rb1+ {[%clk 0:00:48.3]} 40. Kh2
{[%clk 0:01:11.5]} 40... b3 {[%clk 0:00:48.8]} 41. Kg3 {[%clk 0:01:11.1]} 41...
Rd1 {[%clk 0:00:34.2]} 42. Nc4 {[%clk 0:01:08.2]} 42... Rd4 {[%clk 0:00:33.2]}
43. Ne3 {[%clk 0:01:05.1]} 43... Rd3 {[%clk 0:00:31.9]} 44. Kf3 {[%clk
0:01:04.5]} 44... d5 {[%clk 0:00:31.8]} 45. Ke2 {[%clk 0:01:04.4]} 45... Rc3
{[%clk 0:00:31.6]} 46. Kd2 {[%clk 0:01:04.4]} 46... d4 {[%clk 0:00:31.7]} 47.
Nd1 {[%clk 0:01:01.9]} 47... Rc2+ {[%clk 0:00:27]} 48. Ke1 {[%clk 0:01:00]}
48... d3 {[%clk 0:00:17]} 49. Rxb3 {[%clk 0:00:57.3]} 49... Re2+ {[%clk
0:00:17.2]} 50. Kf1 {[%clk 0:00:57.5]} 50... Rd2 {[%clk 0:00:17.7]} 51. Rb1
{[%clk 0:00:57.6]} 51... Rc2 {[%clk 0:00:13.3]} 52. Ne3 {[%clk 0:00:56.1]} 52...
Rd2 {[%clk 0:00:13.8]} 53. Rd1 {[%clk 0:00:55.6]} 53... Rxd1+ {[%clk 0:00:10.8]}
54. Nxd1 {[%clk 0:00:55.3]} 54... Kf6 {[%clk 0:00:11.7]} 55. Ke1 {[%clk
0:00:55.7]} 55... Ke5 {[%clk 0:00:12.5]} 56. Kd2 {[%clk 0:00:56.3]} 56... Kd4
{[%clk 0:00:13.3]} 57. Nb2 {[%clk 0:00:56.7]} 57... g5 {[%clk 0:00:12.6]} 58.
Nxd3 {[%clk 0:00:56.7]} 58... h5 {[%clk 0:00:13.5]} 59. Ne1 {[%clk 0:00:56.2]}
59... Kd5 {[%clk 0:00:14.2]} 60. Ke3 {[%clk 0:00:54.6]} 60... Kc4 {[%clk
0:00:15.1]} 61. Nf3 {[%clk 0:00:53]} 61... Kb5 {[%clk 0:00:16]} 62. Nxg5 {[%clk
0:00:52.6]} 62... Kc6 {[%clk 0:00:16.9]} 63. Kf4 {[%clk 0:00:52.8]} 63... Kd5
{[%clk 0:00:17.8]} 64. Kf5 {[%clk 0:00:53.1]} 64... Kc6 {[%clk 0:00:18.7]} 1-0

[Event "Early-Titled-Tuesday-Blitz-October-24-2023"]
[Site "Chess.com"]
[Date "2023.10.24"]
[Round "4"]
[White "Chernov_Mikhail"]
[Black "twofoxniel"]
[Result "1-0"]
[WhiteElo "2403"]
[BlackElo "2580"]
[TimeControl "180+1"]
[EndTime "8:38:03 PDT"]
[Termination "Chernov_Mikhail won on time"]

1. d4 {[%clk 0:02:55]} 1... d5 {[%clk 0:02:26.8]} 2. Nc3 {[%clk 0:02:54.7]} 2...
c6 {[%clk 0:02:26.4]} 3. Bf4 {[%clk 0:02:52.9]} 3... Nf6 {[%clk 0:02:24.6]} 4.
e3 {[%clk 0:02:51.1]} 4... Bf5 {[%clk 0:02:13.8]} 5. Nf3 {[%clk 0:02:50.5]} 5...
Nbd7 {[%clk 0:02:11.2]} 6. Ne5 {[%clk 0:02:48.1]} 6... Nxe5 {[%clk 0:02:11]} 7.
Bxe5 {[%clk 0:02:41.1]} 7... e6 {[%clk 0:02:08.4]} 8. f3 {[%clk 0:02:34.9]} 8...
h6 {[%clk 0:02:02]} 9. Bd3 {[%clk 0:02:29.9]} 9... Bxd3 {[%clk 0:02:01.1]} 10.
Qxd3 {[%clk 0:02:30.8]} 10... Nd7 {[%clk 0:02:00.6]} 11. Bg3 {[%clk 0:02:26.9]}
11... Bb4 {[%clk 0:01:55.2]} 12. O-O {[%clk 0:02:23.7]} 12... O-O {[%clk
0:01:53.3]} 13. Ne2 {[%clk 0:02:04.4]} 13... Re8 {[%clk 0:01:49.9]} 14. c3
{[%clk 0:02:03]} 14... Ba5 {[%clk 0:01:45.8]} 15. e4 {[%clk 0:02:01.8]} 15...
Bc7 {[%clk 0:01:43.5]} 16. Bxc7 {[%clk 0:01:59.7]} 16... Qxc7 {[%clk 0:01:43.2]}
17. e5 {[%clk 0:02:00.4]} 17... c5 {[%clk 0:01:41.1]} 18. f4 {[%clk 0:01:58.5]}
18... Qb6 {[%clk 0:01:40.2]} 19. a3 {[%clk 0:01:35.3]} 19... f6 {[%clk
0:01:34.9]} 20. Kh1 {[%clk 0:01:25.3]} 20... Rac8 {[%clk 0:01:29.9]} 21. exf6
{[%clk 0:01:10.9]} 21... Nxf6 {[%clk 0:01:28.9]} 22. dxc5 {[%clk 0:01:11]} 22...
Rxc5 {[%clk 0:01:24.7]} 23. Rab1 {[%clk 0:00:44.4]} 23... Ne4 {[%clk 0:01:20.7]}
24. Nd4 {[%clk 0:00:42.2]} 24... Qd6 {[%clk 0:00:27]} 25. f5 {[%clk 0:00:28.2]}
25... e5 {[%clk 0:00:27.2]} 26. Ne6 {[%clk 0:00:27.8]} 26... Rcc8 {[%clk
0:00:19.5]} 27. Rbd1 {[%clk 0:00:22.5]} 27... Nf6 {[%clk 0:00:19.4]} 28. Qg3
{[%clk 0:00:18.5]} 28... Re7 {[%clk 0:00:18.7]} 29. Rfe1 {[%clk 0:00:16.5]}
29... Nd7 {[%clk 0:00:13]} 30. Qg6 {[%clk 0:00:09.7]} 30... Rce8 {[%clk
0:00:11.7]} 31. Qg3 {[%clk 0:00:04.9]} 31... b6 {[%clk 0:00:06.9]} 32. Rd3
{[%clk 0:00:05.4]} 32... Nf8 {[%clk 0:00:03.4]} 33. Nxf8 {[%clk 0:00:03.2]}
33... Rxf8 {[%clk 0:00:03.5]} 34. Red1 {[%clk 0:00:04.1]} 34... Rxf5 {[%clk
0:00:03.5]} 35. h3 {[%clk 0:00:04.6]} 1-0

[Event "Early-Titled-Tuesday-Blitz-October-24-2023"]
[Site "Chess.com"]
[Date "2023.10.24"]
[Round "4"]
[White "karinachess1"]
[Black "Casper"]
[Result "0-1"]
[WhiteElo "2624"]
[BlackElo "2458"]
[TimeControl "180+1"]
[EndTime "8:38:04 PDT"]
[Termination "Casper won by resignation"]

1. d4 {[%clk 0:03:00.9]} 1... Nf6 {[%clk 0:02:59.4]} 2. c4 {[%clk 0:03:00.8]}
2... g6 {[%clk 0:02:59.9]} 3. g3 {[%clk 0:03:00.6]} 3... Bg7 {[%clk 0:03:00.1]}
4. Bg2 {[%clk 0:03:01.2]} 4... O-O {[%clk 0:03:01]} 5. Nc3 {[%clk 0:03:01.4]}
5... c5 {[%clk 0:03:00.8]} 6. Nf3 {[%clk 0:02:59.4]} 6... cxd4 {[%clk
0:03:00.1]} 7. Nxd4 {[%clk 0:03:00.3]} 7... Nc6 {[%clk 0:03:00.3]} 8. Nc2 {[%clk
0:03:00.6]} 8... d6 {[%clk 0:02:59.2]} 9. O-O {[%clk 0:02:58.8]} 9... Qa5 {[%clk
0:02:59.1]} 10. Nd5 {[%clk 0:02:44.1]} 10... Nxd5 {[%clk 0:02:38]} 11. cxd5
{[%clk 0:02:45]} 11... Ne5 {[%clk 0:02:34.3]} 12. Bd2 {[%clk 0:02:32.5]} 12...
Qb6 {[%clk 0:02:31.2]} 13. Bc3 {[%clk 0:02:31.6]} 13... Bg4 {[%clk 0:02:21.6]}
14. Bd4 {[%clk 0:02:18]} 14... Qb5 {[%clk 0:02:17]} 15. f3 {[%clk 0:02:15.9]}
15... Bd7 {[%clk 0:02:11.6]} 16. b3 {[%clk 0:02:01.1]} 16... Rfc8 {[%clk
0:02:06]} 17. Rc1 {[%clk 0:01:58.8]} 17... a5 {[%clk 0:01:53.8]} 18. Qd2 {[%clk
0:01:46.8]} 18... a4 {[%clk 0:01:48.9]} 19. Na3 {[%clk 0:01:46.8]} 19... Qxd5
{[%clk 0:01:40.7]} 20. Rxc8+ {[%clk 0:01:07.1]} 20... Rxc8 {[%clk 0:01:40.4]}
21. Rd1 {[%clk 0:00:59.5]} 21... axb3 {[%clk 0:00:40]} 22. axb3 {[%clk
0:00:52.5]} 22... Qxb3 {[%clk 0:00:37]} 23. Nb1 {[%clk 0:00:51.1]} 23... Rc2
{[%clk 0:00:34.6]} 24. Qe1 {[%clk 0:00:38.6]} 24... Bc6 {[%clk 0:00:20.4]} 25.
Nd2 {[%clk 0:00:29.1]} 25... Qa2 {[%clk 0:00:18.5]} 26. Be3 {[%clk 0:00:23]}
26... Ba4 {[%clk 0:00:15]} 27. Rc1 {[%clk 0:00:21.1]} 27... Nc6 {[%clk
0:00:12.1]} 28. Rxc2 {[%clk 0:00:18.3]} 28... Qxc2 {[%clk 0:00:13]} 29. Kf2
{[%clk 0:00:17.7]} 29... b5 {[%clk 0:00:12.4]} 30. f4 {[%clk 0:00:15.3]} 30...
b4 {[%clk 0:00:11.6]} 31. Be4 {[%clk 0:00:15.6]} 31... Qc3 {[%clk 0:00:10.4]}
32. Qb1 {[%clk 0:00:11.6]} 32... Bd4 {[%clk 0:00:08.6]} 33. Nf1 {[%clk
0:00:11.8]} 33... b3 {[%clk 0:00:07.5]} 34. Bxc6 {[%clk 0:00:09.5]} 34... Bxc6
{[%clk 0:00:06.5]} 35. Bxd4 {[%clk 0:00:06.8]} 35... Qxd4+ {[%clk 0:00:07.4]}
36. e3 {[%clk 0:00:07.7]} 36... Qd5 {[%clk 0:00:05.6]} 37. Nd2 {[%clk
0:00:04.9]} 37... Qxd2+ {[%clk 0:00:04.7]} 38. Kf1 {[%clk 0:00:04.1]} 38... Qc2
{[%clk 0:00:03.9]} 39. Qa1 {[%clk 0:00:03.1]} 39... b2 {[%clk 0:00:04.4]} 0-1

[Event "Early-Titled-Tuesday-Blitz-October-24-2023"]
[Site "Chess.com"]
[Date "2023.10.24"]
[Round "4"]
[White "Taran2004"]
[Black "GM_DarwinLaylo"]
[Result "0-1"]
[WhiteElo "2396"]
[BlackElo "2633"]
[TimeControl "180+1"]
[EndTime "8:38:05 PDT"]
[Termination "GM_DarwinLaylo won by resignation"]

1. e4 {[%clk 0:03:00.9]} 1... d5 {[%clk 0:02:56.7]} 2. exd5 {[%clk 0:03:00]}
2... Nf6 {[%clk 0:02:56.8]} 3. Nc3 {[%clk 0:02:59.9]} 3... Nxd5 {[%clk
0:02:56.1]} 4. Bc4 {[%clk 0:03:00.4]} 4... c6 {[%clk 0:02:56.2]} 5. Qf3 {[%clk
0:02:59.2]} 5... Be6 {[%clk 0:02:56.3]} 6. Nxd5 {[%clk 0:02:57.9]} 6... Bxd5
{[%clk 0:02:51.6]} 7. Bxd5 {[%clk 0:02:57.6]} 7... cxd5 {[%clk 0:02:52.5]} 8. d4
{[%clk 0:02:55.6]} 8... Nc6 {[%clk 0:02:52.4]} 9. c3 {[%clk 0:02:55.7]} 9... e6
{[%clk 0:02:50.8]} 10. Bf4 {[%clk 0:02:54.6]} 10... Qb6 {[%clk 0:02:43.4]} 11.
Qe2 {[%clk 0:02:45.1]} 11... Be7 {[%clk 0:02:40]} 12. Nf3 {[%clk 0:02:44.4]}
12... O-O {[%clk 0:02:38.7]} 13. O-O {[%clk 0:02:43.7]} 13... Rac8 {[%clk
0:02:34]} 14. Ne5 {[%clk 0:02:43.4]} 14... Rfd8 {[%clk 0:02:30.6]} 15. Rfe1
{[%clk 0:02:40.3]} 15... Nxe5 {[%clk 0:02:22.2]} 16. Bxe5 {[%clk 0:02:37.2]}
16... Bd6 {[%clk 0:02:21]} 17. f4 {[%clk 0:02:23.5]} 17... Bf8 {[%clk
0:01:57.8]} 18. f5 {[%clk 0:01:54.6]} 18... exf5 {[%clk 0:01:56.1]} 19. Rab1
{[%clk 0:01:53.7]} 19... Re8 {[%clk 0:01:49.2]} 20. Qf3 {[%clk 0:01:49.1]} 20...
Qa5 {[%clk 0:01:31.5]} 21. a3 {[%clk 0:01:23.5]} 21... f6 {[%clk 0:01:28.5]} 22.
Bg3 {[%clk 0:01:16.3]} 22... g6 {[%clk 0:01:27.4]} 23. Bh4 {[%clk 0:01:10.8]}
23... Bg7 {[%clk 0:01:24.1]} 24. Bg3 {[%clk 0:01:09.9]} 24... Re4 {[%clk
0:01:23.5]} 25. Rxe4 {[%clk 0:01:03.8]} 25... fxe4 {[%clk 0:01:14.7]} 26. Qg4
{[%clk 0:01:00.7]} 26... f5 {[%clk 0:01:12]} 27. Qg5 {[%clk 0:01:00.4]} 27...
Qd8 {[%clk 0:01:10.7]} 28. Qf4 {[%clk 0:00:56.9]} 28... b5 {[%clk 0:01:06.9]}
29. Rf1 {[%clk 0:00:54.6]} 29... a5 {[%clk 0:01:02.9]} 30. h4 {[%clk 0:00:50.6]}
30... b4 {[%clk 0:01:01.9]} 31. axb4 {[%clk 0:00:50.3]} 31... axb4 {[%clk
0:01:02]} 32. cxb4 {[%clk 0:00:51.2]} 32... Bxd4+ {[%clk 0:00:59.4]} 33. Kh2
{[%clk 0:00:51.9]} 33... Bg7 {[%clk 0:00:49.6]} 34. h5 {[%clk 0:00:47.3]} 34...
d4 {[%clk 0:00:46.8]} 35. h6 {[%clk 0:00:45.3]} 35... Bf6 {[%clk 0:00:43.6]} 36.
b5 {[%clk 0:00:42.1]} 36... d3 {[%clk 0:00:35.5]} 37. Ra1 {[%clk 0:00:32.6]}
37... Bxb2 {[%clk 0:00:19.9]} 38. Rd1 {[%clk 0:00:32.5]} 38... Qb6 {[%clk
0:00:15.8]} 39. Bf2 {[%clk 0:00:28.7]} 39... Qf6 {[%clk 0:00:12.3]} 40. g3
{[%clk 0:00:25.5]} 40... Be5 {[%clk 0:00:11.5]} 41. Qe3 {[%clk 0:00:25.5]} 41...
f4 {[%clk 0:00:10]} 42. Qa7 {[%clk 0:00:23.5]} 42... fxg3+ {[%clk 0:00:09.1]}
43. Bxg3 {[%clk 0:00:24.4]} 43... Qh4+ {[%clk 0:00:07.8]} 44. Kg2 {[%clk
0:00:23.1]} 44... Qxg3+ {[%clk 0:00:07.9]} 45. Kf1 {[%clk 0:00:24]} 45... Rf8+
{[%clk 0:00:07.4]} 0-1